{"text_format":"1","workbook":"xlsx","n_sheets":2,"sheets":["Handleiding","Controleprotocol-Terugvaloptie"],"not_rendered":{"charts":0,"images":11,"macros":1,"external_links":0,"defined_names":0,"comments":0,"pivot_tables":0},"unopened":[],"bounds":{"document_bytes":16777216,"sheet_cells":100000,"rows_first":2000,"rows_last":500,"rows_between":2000,"halvings":0,"cell_chars":16384,"cell_head_chars":4096},"cells_cut":0,"cells_raw":0,"read":"whole","date_system":"1900"}

{"sheet":"Handleiding","index":0,"n_rows":156,"n_cols":40,"rows_kept":156,"cut":false,"hidden":false,"merged":[[130,1,130,5],[155,39,157,51],[155,16,156,23],[155,25,156,37],[155,9,158,14],[155,1,159,7],[115,1,119,10],[68,1,70,10],[93,1,97,10],[29,1,29,11],[7,48,7,58],[3,1,21,11],[22,15,22,17],[88,15,92,24],[96,15,99,24],[67,15,73,24],[47,15,51,25],[30,15,30,22],[31,15,31,22],[32,15,32,22],[33,15,33,25],[35,15,35,18],[2,1,2,6],[2,15,2,20],[3,15,21,24],[27,1,27,8],[28,1,28,8],[44,1,47,11],[25,1,25,4],[22,1,22,3],[26,1,26,8],[31,1,31,4]]}
[]
[]
[null,"Toelichting bij gebruik als terugvaloptie",null,null,null,null,null,null,null,null,null,null,null,null,null,"Toelichting bij uitvoering controleprotocol"]
[null,"Het Excel-bestand is, naast controlemiddel voor de uitvoering van het controleprotocol (zie toelichting rechts),  opgesteld om de telling op gemeente-niveau te ondersteunen wanneer uitslagprogrammatuur niet toegankelijk of niet toereikend is. Dit situatie is beschreven in het samenwerkingsprotocol. De Kiesraad heeft deze controlesheet opgesteld ten behoeve van het uitvoeren van het controleprotocol. Deze controlesheet dient dus in eerste instantie als een middel om de optellingen in de uitslagprogrammatuur te controleren. De resultaten van deze controlesheet mogen niet als basis dienen voor de optellingen voor het proces-verbaal, tenzij de Kiesraad expliciet heeft aangegeven dat er moet worden overgestapt op de terugvaloptie. In dat geval kan de Kiesraad besluiten dat deze controlesheet als terugvaloptie moet dienen. Het opgestelde samenwerkingsprotocol schrijft voor:\n\n\"Is het noodzakelijk om het gebruik van de uitslag programmatuur langere tijd stop te zetten terwijl er op korte termijn geen oplossing is, dan moet de uitslag op een andere manier berekend worden. Bijvoorbeeld met behulp van een spreadsheet of via het handmatig optellen van de stemtotalen en het handmatig vaststellen van de uitslag. De Kiesraad heeft in dit soort gevallen altijd overleg met de partijen die betrokken zijn bij het samenwerkingsprotocol. Is het nodig om de uitslag op een andere manier te berekenen, dan geeft de Kiesraad instructies over het gebruik van deze terugvaloptie. De Kiesraad deelt de dag voor de dag van stemming informatie over de mogelijke terugvaloptie. Organiserende organen zijn niet verplicht om zich hierop voor te bereiden.\"\nZie ook de onderstaande link:",null,null,null,null,null,null,null,null,null,null,null,null,null,"Het Excel-bestand dient gebruikt te worden bij de uitvoering van het controleprotocol. Het controleprotocol schrijft voor: \n\n\"Het gemeentelijk stembureau gebruikt uitslagprogrammatuur voor het optellen van de uitkomsten van alle stembureaus in de gemeente. Met dit protocol controleert het gemeentelijk stembureau deze optellingen. In Nederland hebben we namelijk het uitgangspunt dat het papieren proces bij verkiezingen leidend is. Door dit protocol is zeker dat de digitale bestanden en het papieren proces-verbaal hetzelfde zijn. Een gemeentelijk stembureau is verplicht dit protocol te volgen. Het gemeentelijk stembureau verantwoordt in het proces-verbaal dat het controleprotocol uitgevoerd is. \nDe controle van de optellingen draagt bij aan de controleerbaarheid en transparantie van de verkiezing. De controle gaat via de optellingen van 3 willekeurige lijsten (steekproef). De optellingen van de totalen van de vastgestelde lijsttotalen per stembureau moeten hetzelfde zijn als het gemeentetotaal van die lijst zoals opgeteld door de uitslagprogrammatuur. De controle is hetzelfde voor gemeenten met centrale stemopneming en decentrale stemopneming. Alleen de processen-verbaal waar de definitieve lijsttotalen per stembureau in staan verschillen.\"\n\nZie ook de onderstaande link:"]
[]
[]
[]
[]
[]
[]
[]
[]
[]
[]
[]
[]
[]
[]
[]
[]
[]
[]
[null,{"$f":"HYPERLINK(\"https://www.kiesraad.nl/binaries/kiesraad/documenten/publicaties/2025/08/21/samenwerkingsprotocol-wet-programmatuur-verkiezingsuitslagen/Samenwerkingsprotocol.pdf\", \"Samenwerkingsprotocol\")","v":"Samenwerkingsprotocol"},null,null,null,null,null,null,null,null,null,null,null,null,null,{"$f":"HYPERLINK(\"https://www.kiesraad.nl/verkiezingen/adviezen-en-publicaties/publicaties/2025/12/16/controleprotocol-gemeentelijk-stembureau\", \"Controleprotocol GSB\")","v":"Controleprotocol GSB"}]
[]
[]
[null,"Actielijst terugvaloptie invullen"]
[null,"1. Gemeentenaam invullen in de sheet en bestandnaam"]
[null,"2. Invullen van stembureaunamen en partijnamen (optioneel)"]
[null,"3. Aantallen stemmen invullen voor partijen per stembureau"]
[null,"4. Velden A, B, E, F, G invullen per stembureau (totalen D en H worden automatisch berekend)",null,null,null,null,null,null,null,null,null,null,null,null,null,"Actielijst controleprotocol invullen"]
[null,null,null,null,null,null,null,null,null,null,null,null,null,null,null,"1. Gemeentenaam invullen in de sheet en bestandnaam"]
[null,"Stap 1: Gemeentenaam Invullen",null,null,null,null,null,null,null,null,null,null,null,null,null,"2. Voer stap 1 en 2 uit van het controleprotocol"]
[null,null,null,null,null,null,null,null,null,null,null,null,null,null,null,"3. Gebruik deze Excel-sheet voor invoeren lijsttotalen"]
[null,null,null,null,null,null,null,null,null,null,null,null,null,null,null,"4. Ga verder met het controleprotocol zoals beschreven"]
[]
[null,null,null,null,null,null,null,null,null,null,null,null,null,null,null,"Stap 1: Gemeentenaam Invullen"]
[]
[]
[]
[]
[]
[]
[]
[]
[null,"Vul de naam van de gemeente in op de plek van \"GEMEENTENAAM\" (linksboven). Bij ingebruikname ook graag de naam van het Excel-bestand voorzien van de gemeentenaam middels format: Spreadsheet_ondersteuning_controleprotocol_terugvaloptie_GSB_GEMEENTENAAM_GR26, waarbij \"GEMEENTENAAM\" vervangen wordt."]
[]
[]
[null,null,null,null,null,null,null,null,null,null,null,null,null,null,null,"Vul de naam van de gemeente in op de plek van \"GEMEENTENAAM\" (linksboven). Bij ingebruikname ook graag de naam van het Excel-bestand voorzien van de gemeentenaam middels format: Spreadsheet_ondersteuning_controleprotocol_terugvaloptie_GSB_GEMEENTENAAM_GR26, waarbij \"GEMEENTENAAM\" vervangen wordt."]
[]
[null,"Stap 2: Invullen van stembureaunamen en partijnamen (optioneel)"]
[]
[]
[]
[null,null,null,null,null,null,null,null,null,null,null,null,null,null,null,"Stap 2: Voer stap 1 en 2 uit van het controleprotocol"]
[]
[]
[]
[]
[]
[]
[]
[]
[]
[]
[]
[]
[]
[null,null,null,null,null,null,null,null,null,null,null,null,null,null,null,"Stap 1 en 2 in het controleprotocol zijn: \"Loting van drie lijsten\" en \"Bereid de spreadsheet voor\". De loting voert het GSB uit volgens protocol. De spreadsheet kan voorbereid worden door de namen in te vullen van de 3 lijsten die getrokken zijn (in het voorbeeld hierboven als \"Lijst A\", \"Lijst B\" en \"Lijst C\"). Ook kan je de namen en/of nummers van de stembureaus invullen. "]
[null,"Er is extra ruimte gemaakt om de stembureaunaam te noteren voor betere leesbaarheid. Vul de namen in, in de bijbehorende velden."]
[]
[]
[]
[null,"Stap 3: Aantallen stemmen invullen voor partijen per stembureau"]
[]
[]
[null,null,null,null,null,null,null,null,null,null,null,null,null,null,null,"Stap 3:  Gebruik deze Excel-sheet voor invoeren lijsttotalen"]
[]
[]
[]
[]
[]
[]
[]
[]
[]
[]
[]
[]
[null,null,null,null,null,null,null,null,null,null,null,null,null,null,null,"Voer per stembureau het totaal aantal uitgebrachte stemmen op de te controleren lijsten in op de spreadsheet. Deze neemt u over van het proces verbaal N 10-1 (DSO) of van het procesverbaal Na 31-2, Bijlage 1 (CSO). Je kunt direct starten met invoeren in de spreadsheet na de invoer van het betreffende stembureau in de uitslagprogrammatuur."]
[]
[]
[]
[]
[null,"Vul het aantal stemmen per partij per stembureau in, in de witte velden. Bij het invoeren van getallen zullen de totalen per stembureau en totalen per lijst veranderen (lichtgroene rij en lichtblauwe kolom). De kolom met lijstnummers en rij met stembureaunummers zijn vastgezet, zodat deze altijd zichtbaar blijven als in het document gescrold wordt."]
[null,null,null,null,null,null,null,null,null,null,null,null,null,null,null,"Stap 4: Ga verder met het controleprotocol zoals beschreven"]
[]
[null,null,null,null,null,null,null,null,null,null,null,null,null,null,null,"De totalen in deze sheet worden automatisch berekend op basis van de invoer. Ga verder met de stappen uit het controleprotocol."]
[]
[]
[null,"Stap 4: Vul de toegelaten kiezers en uitgebrachte stemtotalen in"]
[]
[]
[]
[]
[]
[]
[]
[]
[]
[]
[]
[]
[]
[]
[]
[null,"Vul de velden A, B, E, F en G in voor ieder stembureau. De velden voor D en H worden hieruit automatisch berekend. Deze velden zijn hetzelfde als op het proces verbaal N 10-1 (DSO) of van het procesverbaal Na 31-2, Bijlage 1 (CSO)."]
[]
[]
[]
[]
[]
[]
[]
[]
[]
[]
[]
[]
[]
[]
[null,"Extra Uitleg 2: Stembureaus"]
[]
[]
[]
[]
[]
[]
[]
[]
[]
[]
[]
[]
[]
[]
[]
[]
[]
[]
[]
[]
[]
[]
[]
[]
[null,"Het aantal stembureaus verschilt per gemeente. Momenteel zijn er 'velden' aangemaakt voor 50 stembureaus. Wanneer de gemeente meer dan 50 stembureaus telt dient men deze zelf toe te voegen door de velden uit te breiden. Zie rechts hiervan voor uitleg van uitbreiding van stembureaus: ",null,null,null,null,null,null,null,"1) Selecteer de drie laatste kolommen, inclusief de rij met stembureaunummers en stembureau totalen helemaal tot onder (de laatste lijst).",null,null,null,null,null,null,"2) Scroll naar het onderste eind van de kolommen en vind het \"kleine blokje\"\n rechtsonder van de geselecteede kolommen.",null,null,null,null,null,null,null,null,"3) Klik op het \"kleine blokje\" en sleep het naar rechts, tot het aantal kolommen overeenkomt met het aantal stembureaus van de gemeente.",null,null,null,null,null,null,null,null,null,null,null,null,null,"4) Stop met slepen en laat de muisknop los: nu worden opeenvolgende lijstnummers automatisch gegenereerd en de velden met stembureau totalen. Herhaal dit voor meer stembureaus."]

{"sheet":"Controleprotocol-Terugvaloptie","index":1,"n_rows":51,"n_cols":89,"rows_kept":51,"cut":false,"hidden":false,"merged":[]}
["GR2026 - GSB"]
["Hoogeveen"]
[]
[null,null,"   ",null,"Stembureau Nr. →",1,2,3,4,5,6,7,8,9,10,11,12,13,14,15,16,17,18,19,20,21,22,23,24,25,26,27,28,29,30,31,32,33,34,35,36,37,38,39,40,41,42,43,44,45,46,47,48,49,50,51,52,53,54,55,56,57,58,59,60,61,62,63,64,65,66,67,68,69,70,71,72,73,74,75,76,77,78,79,80,81,82,83,84]
["Gemeentetotaal",null,null,null,"Stembureau Naam","Raadhuis (1)","WZC de Westerkim","IT Hub","MFC Het Knooppunt","NNCZ Krakeel","Basisschool Erflanden (1)","MFC De Magneet (1)","d' Olde Bieb","NNCZ Wolfsbos","Buurthuis DES-gebouw","Brede School de ZuiderBreedte","De Goede Herderkerk (1)","Stichting Salawaku Hoogeveen","NNCZ De Vecht","Gymzaal Curiestraat","Basisschool 't Kienholt","Buurthuis De Weideblik","MFC De Cirkel","Dorpscentrum 't Anker (1)","NNCZ Beatrix","De Open Deur (1)","De Open Deur (2)","NNCZ De Kaap","Basisschool de Schuthoek","Sporthal Trasselt","Dorpshuis 't Overschotje","Ontmoetingscentrum de Wenning","MFC De Opsteker","Vereniging Ons Dorpshuis","Dorpshuis de Vuurkörf","MFC De Eiken","Raadhuis (2)","Basisschool Erflanden (2)","MFC De Magneet (2)","De Goede Herderkerk (2)","Dorpscentrum 't Anker (2)"]
[{"$f":"SUM(E7:E42)","v":24151},null,"Lijst Nr. ↓","Partijnamen","Totalen",{"$f":"SUM(F7:F42)","v":681},574,567,790,729,804,498,1175,445,570,676,493,372,646,523,602,953,1023,669,1107,456,495,823,801,1465,452,957,684,363,436,380,577,{"$f":"SUM(AL7:AL42)","v":773},655,507,430,0,0,0,0,0,0,0,0,0,0,0,0,0,0]
[null,null,1,"Gemeentebelangen Hoogeveen e.o.",{"$f":"SUM(F7:AAA7)","v":5708},191,132,124,183,161,169,120,293,116,139,182,111,85,142,130,111,198,338,139,198,109,114,205,166,264,92,256,254,124,100,101,124,154,172,111,100]
[null,null,2,"GROENLINKS / Partij van de Arbeid (PvdA)",{"$f":"SUM(F8:AAA8)","v":3433},93,52,74,105,114,80,105,208,68,79,93,52,51,88,75,121,176,60,116,184,55,70,107,143,239,46,112,63,48,19,37,107,118,123,65,87]
[null,null,3,"CDA",{"$f":"SUM(F9:AAA9)","v":3513},122,129,78,115,78,113,57,157,75,43,101,89,64,134,60,87,191,136,58,185,44,64,166,107,267,81,140,66,31,86,38,63,119,70,68,31]
[null,null,4,"VVD",3669,102,75,100,117,87,209,64,135,50,55,67,56,51,133,70,73,153,121,77,139,31,39,123,134,315,114,249,93,41,59,33,121,204,66,67,46]
[null,null,5,"ChristenUnie",1568,45,46,63,39,50,62,21,72,36,18,41,26,36,45,44,52,66,102,33,69,10,15,58,43,124,21,40,23,19,35,29,19,59,38,44,25]
[null,null,6,"SP (Socialistische Partij)",733,23,18,22,38,35,10,16,38,18,36,37,18,17,19,29,28,25,12,15,23,12,18,14,21,25,7,22,14,8,12,6,19,9,31,18,20]
[null,null,7,"Forum voor Democratie",3954,72,78,65,150,140,99,84,205,60,168,125,105,53,43,81,96,102,148,168,217,151,145,103,140,125,72,102,127,66,80,103,101,65,118,100,97]
[null,null,8,"D66",{"$f":"SUM(F14:AAA14)","v":708},19,12,28,28,30,43,16,30,8,18,16,12,5,22,19,22,35,21,5,9,9,7,21,27,84,12,24,14,8,12,9,17,38,17,7,4]
[null,null,9,"Staatskundig Gereformeerde Partij (SGP)",865,14,32,13,15,34,19,15,37,14,14,14,24,10,20,15,12,7,85,58,83,35,23,26,20,22,7,12,30,18,33,24,6,7,20,27,20]
[null,null,10,null,0]
[null,null,11,null,0]
[null,null,12,null,0]
[null,null,13,null,0]
[null,null,14,null,0]
[null,null,15,null,0]
[null,null,16,null,0]
[null,null,17,null,0]
[null,null,18,null,0]
[null,null,19,null,0]
[null,null,20,null,0]
[null,null,21,null,0]
[null,null,22,null,0]
[null,null,23,null,0]
[null,null,24,null,0]
[null,null,25,null,0]
[null,null,26,null,0]
[null,null,27,null,0]
[null,null,28,null,0]
[null,null,29,null,0]
[null,null,30,null,0]
[null,null,31,null,0]
[null,null,32,null,0]
[null,null,33,null,0]
[null,null,34,null,0]
[null,null,35,null,0]
[null,null,36,null,0]
[]
[]
[null,null,"A","Geldige stempassen",{"$f":"SUM(F45:AAA45)","v":0}]
[null,null,"B","Geldige volmachtbewijzen",{"$f":"SUM(F46:AAA46)","v":0}]
[null,null,"D","Totaal toegelaten kiezers",{"$f":"SUM(E45:E46)","v":0},0,0,0,0,0,0,0,0,0,0,0,0,0,0,0,0,0,0,0,0,0,0,0,0,0,0,0,0,0,0,0,{"$f":"SUM(AK45:AK46)","v":0},0,0,0,0,0,0,0,0,0,0,0,0,0,0,0,0,0,0]
[null,null,"E","Stembiljetten met geldige stem",{"$f":"SUM(F48:AAA48)","v":0}]
[null,null,"F","Blanco stembiljetten",{"$f":"SUM(F49:AAA49)","v":0}]
[null,null,"G","Ongeldige stembiljetten",{"$f":"SUM(F50:AAA50)","v":0}]
[null,null,"H","Aantal uitgebrachte stemmen",{"$f":"SUM(E48:E50)","v":0},0,0,0,0,0,0,0,0,0,0,0,0,0,0,0,0,0,0,0,0,0,0,0,0,0,0,0,0,0,0,0,{"$f":"SUM(AK48:AK50)","v":0},0,0,0,0,0,0,0,0,0,0,0,0,0,0,0,0,0,0]